fUST/lending_fUST_20250811
["ID","MTS","AMOUNT","RATE_DAILY","PERIOD"]
[378449147,1754868195010,1070.56957202,0.00019178,2]
[378449148,1754868195033,3772.22199929,0.00019178,2]
[378449154,1754868296630,302.75782099,0.00019082,2]
[378449155,1754868296666,302.75782099,0.00019273,2]
[378449156,1754868296730,454.13673149,0.00019845,4]
[378449157,1754868296766,302.75782099,0.00019464,2]
[378449158,1754868296874,302.75782099,0.00019655,2]
[378449159,1754868304895,250.0,0.00019778,2]
[378449160,1754868315325,3776.50694321,0.000199,2]
[378449161,1754868322826,1000.0,0.00019171,2]
[378449164,1754868365961,181.60193922,0.00019804,2]
[378449165,1754868390791,-800.0,0.00019987,2]
[378449166,1754868390814,-254.31827841,0.00019987,2]
[378449167,1754868390837,-800.0,0.00019996,2]
[378449168,1754868390860,-160.0,0.0002,3]
[378449169,1754868390883,-160.0,0.0002,3]
[378449170,1754868390906,-800.0,0.00020018,2]
[378449171,1754868390929,-800.0,0.00020018,2]
[378449172,1754868390952,-454.13673149,0.00020036,4]
[378449173,1754868390975,-800.0,0.00020039,2]
[378449178,1754868447091,-803.50742622,0.0002006,2]
[378449179,1754868447112,-300.0,0.00020077,2]
[378449180,1754868447134,-1200.0,0.00020077,2]
[378449181,1754868447155,-300.0,0.00020078,2]
[378449182,1754868447175,-300.0,0.00020078,2]
[378449183,1754868447195,-1200.0,0.00020078,2]
[378449184,1754868447217,-300.0,0.00020078,2]
[378449185,1754868447240,-500.0,0.00020079,2]
[378449186,1754868447260,-500.0,0.00020079,2]
[378449187,1754868447280,-154.86697646,0.00020079,2]
[378449188,1754868447302,-474.92187817,0.00020079,2]
[378449189,1754868447322,-173.10169479,0.00020087,2]
[378449190,1754868447341,-328.06164745,0.00020087,2]
[378449191,1754868447361,-460.0,0.00020087,2]
[378449192,1754868447382,-460.0,0.00020087,2]
[378449193,1754868447402,-64.16779064,0.00020087,2]
[378449196,1754868514757,29362.83918624,0.00018,2]
[378449197,1754868515746,3663.56935986,0.000199,2]
[378449206,1754868518809,3321.21144438,0.00019,2]
[378449213,1754868615842,160.0,0.0002,3]
[378449241,1754868632287,-426.18,0.0002007,2]
[378449262,1754868638044,-26.84599507,0.0002007,2]
[378449264,1754868638054,-460.0,0.00020081,2]
[378449266,1754868638063,-300.0,0.00020086,2]
[378449268,1754868638073,-300.0,0.00020086,2]
[378449270,1754868638083,-416.64641453,0.00020086,2]
[378449276,1754868638133,-783.35358547,0.00020086,2]
[378449278,1754868638143,-460.0,0.00020087,2]
[378449280,1754868638152,-652.5,0.00020087,2]
[378449283,1754868638161,-460.0,0.00020087,2]
[378449286,1754868638170,-460.0,0.00020087,2]
[378449289,1754868638180,-460.0,0.00020087,2]
[378449292,1754868638189,-460.0,0.00020087,2]
[378449295,1754868638198,-460.0,0.00020087,2]
[378449297,1754868638208,-460.0,0.00020087,2]
[378449298,1754868638217,-460.0,0.00020087,2]
[378449299,1754868638229,-460.0,0.00020087,2]
[378449300,1754868638238,-943.48,0.00020087,2]
[378449301,1754868638248,-460.0,0.00020087,2]
[378449302,1754868638257,-460.0,0.00020087,2]
[378449303,1754868638269,-460.0,0.00020087,2]
[378449304,1754868638279,-460.0,0.00020087,2]
[378449305,1754868638288,-460.0,0.00020088,2]
[378449307,1754868638297,-460.0,0.00020088,2]
[378449309,1754868638306,-460.0,0.00020088,2]
[378449311,1754868638317,-460.0,0.00020088,2]
[378449312,1754868638327,-461.13471542,0.00020088,2]
[378449313,1754868638336,-460.0,0.00020088,2]
[378449315,1754868638346,-477.2,0.00020088,2]
[378449317,1754868638355,-460.0,0.00020088,2]
[378449319,1754868638365,-170.08630115,0.00020088,2]
[378449321,1754868638374,-460.0,0.00020088,2]
[378449323,1754868638384,-500.0,0.00020088,2]
[378449325,1754868638393,-217.22056447,0.00020088,2]
[378449616,1754868641605,-242.77943553,0.00020088,2]
[378449618,1754868641614,-1119.16,0.00020088,2]
[378449620,1754868641624,-460.0,0.00020088,2]
[378449622,1754868641633,-460.0,0.00020088,2]
[378449624,1754868641642,-460.0,0.00020088,2]
[378449626,1754868641651,-460.0,0.00020088,2]
[378449628,1754868641660,-460.0,0.00020088,2]
[378449630,1754868641669,-375.8354194,0.00020088,2]
[378449632,1754868641678,-460.0,0.00020088,2]
[378449634,1754868641687,-240.497779,0.00020187,2]
[378449635,1754868641696,-463.12660417,0.00020353,2]
[378449637,1754868641705,-460.0,0.00020353,2]
[378449639,1754868641714,-166.67088707,0.00020353,2]
[378449642,1754868641723,-460.0,0.00020353,2]
[378449643,1754868641732,-464.28484874,0.00020354,2]
[378449645,1754868641741,-460.0,0.00020354,2]
[378449647,1754868641751,-233.81474007,0.00020354,2]
[378449649,1754868641760,-535.0,0.00020354,2]
[378449651,1754868641770,-491.05424273,0.00020354,2]
[378449653,1754868641779,-309.16672412,0.00020354,2]
[378449655,1754868641788,-460.0,0.00020354,2]
[378449657,1754868641798,-460.0,0.00020354,2]
[378449659,1754868641807,-460.0,0.00020354,2]
[378449661,1754868641817,-460.0,0.00020354,2]
[378449663,1754868641826,-414.74806656,0.00020354,2]
[378449665,1754868641835,-460.0,0.00020354,2]
[378449667,1754868641844,-151.0,0.00020354,2]
[378449669,1754868641853,-294.81336106,0.00020354,2]
[378449671,1754868641862,-151.0,0.00020354,2]
[378449673,1754868641871,-7.53519305,0.00020354,2]
[378449686,1754868641978,-452.46480695,0.00020354,2]
[378449688,1754868641987,-300.25902279,0.00020354,2]
[378449690,1754868641998,-159.74097721,0.00020354,2]
[378449692,1754868642008,-220.99912319,0.00020354,2]
[378449694,1754868642017,-151.0,0.00020354,2]
[378449696,1754868642026,-151.0,0.00020354,2]
[378449698,1754868642035,-151.0,0.00020354,2]
[378449700,1754868642045,-47.3098996,0.00020354,2]
[378449702,1754868642056,-103.6901004,0.00020354,2]
[378449704,1754868642066,-151.0,0.00020354,2]
[378449706,1754868642075,-460.0,0.00020354,2]
[378449708,1754868642084,-509.82,0.00020354,2]
[378449710,1754868642093,-460.0,0.00020354,2]
[378449712,1754868642102,-460.0,0.00020354,2]
[378449714,1754868642111,-460.0,0.00020354,2]
[378449716,1754868642120,-460.0,0.00020354,2]
[378449718,1754868642130,-241.26703942,0.00020354,2]
[378449720,1754868642141,-218.73296058,0.00020354,2]
[378449722,1754868642150,-460.0,0.00020354,2]
[378449724,1754868642159,-460.0,0.00020354,2]
[378449726,1754868642169,-551.25,0.00020354,2]
[378449728,1754868642178,-460.0,0.00020354,2]
[378449730,1754868642187,-161.39134132,0.00020354,2]
[378450118,1754868646238,-460.0,0.00020087,2]
[378450120,1754868646247,-460.0,0.00020088,2]
[378450121,1754868646256,-339.30593299,0.00020353,2]
[378450124,1754868646267,-120.69406701,0.00020353,2]
[378450126,1754868646279,-460.0,0.00020353,2]
[378450128,1754868646288,-298.60865868,0.00020354,2]
[378450130,1754868646297,-460.0,0.00020354,2]
[378450131,1754868646306,-460.0,0.00020354,2]
[378450133,1754868646315,-460.0,0.00020354,2]
[378450135,1754868646325,-460.0,0.00020354,2]
[378450137,1754868646335,-460.0,0.00020354,2]
[378450140,1754868646345,-460.0,0.00020354,2]
[378450142,1754868646355,-460.0,0.00020354,2]
[378450143,1754868646365,-460.0,0.00020354,2]
[378450145,1754868646374,-460.0,0.00020354,2]
[378450147,1754868646383,-460.0,0.00020354,2]
[378450149,1754868646393,-460.0,0.00020354,2]
[378450151,1754868646402,-460.0,0.00020354,2]
[378450153,1754868646412,-652.5,0.00020361,2]
[378450155,1754868646423,-460.0,0.00020361,2]
[378450157,1754868646432,-460.0,0.00020361,2]
[378450159,1754868646442,-460.0,0.00020361,2]
[378450162,1754868646452,-460.0,0.00020361,2]
[378450164,1754868646461,-460.0,0.00020361,2]
[378450166,1754868646470,-460.0,0.00020361,2]
[378450168,1754868646479,-943.48,0.00020361,2]
[378450170,1754868646488,-460.0,0.00020361,2]
[378450172,1754868646497,-137.24723261,0.00020361,2]
[378450174,1754868646508,-322.75276739,0.00020361,2]
[378450176,1754868646517,-460.0,0.00020361,2]
[378450178,1754868646527,-460.0,0.00020361,2]
[378450180,1754868646536,-460.0,0.00020361,2]
[378450182,1754868646545,-1119.16,0.00020362,2]
[378450184,1754868646554,-335.50148551,0.00020362,2]
[378450187,1754868646565,-124.49851449,0.00020362,2]
[378450189,1754868646574,-460.0,0.00020362,2]
[378450190,1754868646584,-63.82645721,0.00020387,2]
[378450193,1754868646599,-736.17354279,0.00020387,2]
[378450195,1754868646610,-151.0,0.00020418,2]
[378450197,1754868646619,-800.0,0.00020421,2]
[378450199,1754868646628,-800.0,0.00020502,2]
[378450201,1754868646637,-800.0,0.00020532,2]
[378450203,1754868646646,-1757.08064584,0.00020549,2]
[378450205,1754868646656,-800.0,0.00020575,2]
[378450207,1754868646665,-800.0,0.00020587,2]
[378450209,1754868646674,-511.0161643,0.00020627,10]
[378450211,1754868646685,-33.5938357,0.00020627,10]
[378450213,1754868646694,-901.9425764,0.00020627,10]
[378450441,1754868712556,3541.45038143,0.000199,2]
[378450442,1754868770814,182.28657621,0.00019986,2]
[378450443,1754868826845,454.09136318,0.00019886,4]
[378450444,1754868847980,473.2,0.00030137,120]
[378450445,1754868855874,500.0,0.00030136,120]
[378450446,1754868868738,182.28657621,0.00019981,2]
[378450447,1754868871289,672.0,0.00030136,120]
[378450448,1754868899348,157.603887,0.00019863,2]
[378450449,1754868905960,3430.68799856,0.000199,2]
[378450450,1754868919566,160.0,0.0002,3]
[378450451,1754869014250,257.95781,0.00019236,2]
[378450453,1754869080228,3359.16825498,0.000199,2]
[378450455,1754869095259,10000.0,0.0002004,2]
[378450456,1754869112594,10000.0,0.0002004,2]
[378450457,1754869131763,8508.0,0.0002004,2]
[378450458,1754869152044,184.883004,0.00019484,2]
[378450459,1754869152376,156.07293883,0.00019485,2]
[378450461,1754869252305,3247.19597993,0.000199,2]
[378450465,1754869332848,1116.17464916,0.00019981,2]
[378450466,1754869347878,24900.0,0.00019253,2]
[378450473,1754869426224,3255.43070014,0.000199,2]
[378450474,1754869442570,2944.0,0.0002,2]
[378450477,1754869487408,5000.0,0.00030137,120]
[378450484,1754869540299,216.448001,0.00013699,2]
[378450485,1754869608206,3146.91546054,0.000199,2]
[378450486,1754869643086,-1200.0,0.00020086,2]
[378450487,1754869643108,-300.0,0.00020086,2]
[378450488,1754869643132,-1200.0,0.00020086,2]
[378450489,1754869643156,-300.0,0.00020086,2]
[378450490,1754869643182,-500.0,0.00020087,2]
[378450491,1754869643205,-216.448001,0.00020187,2]
[378450492,1754869643225,-293.46066102,0.00020251,2]
[378450493,1754869643246,-460.0,0.00020252,2]
[378450494,1754869643270,-460.0,0.00020252,2]
[378450495,1754869643291,-460.0,0.00020252,2]
[378450496,1754869643319,-460.0,0.00020252,2]
[378450497,1754869643340,-460.0,0.00020252,2]
[378450498,1754869643363,-460.0,0.00020252,2]
[378450499,1754869643387,-460.0,0.00020252,2]
[378450500,1754869643408,-500.0,0.00020252,2]
[378450501,1754869643427,-460.0,0.00020252,2]
[378450502,1754869643448,-307.64298025,0.00020252,2]
[378450503,1754869643469,-460.0,0.00020252,2]
[378450504,1754869643491,-460.0,0.00020252,2]
[378450505,1754869643512,-106.31464158,0.00020252,2]
[378450507,1754869688384,817.1701284,0.0002004,7]
[378450509,1754869790774,3042.01667375,0.000199,2]
[378450516,1754869832524,-1232.06,0.00020087,2]
[378450517,1754869832534,-28.10271302,0.00020087,2]
[378450518,1754869832686,-431.89728698,0.00020087,2]
[378450520,1754869832695,-2389.41337894,0.00020241,2]
[378450522,1754869832705,-300.0,0.00020251,2]
[378450524,1754869832715,-300.0,0.00020251,2]
[378450525,1754869832724,-300.0,0.00020251,2]
[378450526,1754869832734,-300.0,0.00020251,2]
[378450527,1754869832742,-1200.0,0.00020251,2]
[378450528,1754869832751,-460.0,0.00020252,2]
[378450529,1754869832760,-460.0,0.00020252,2]
[378450530,1754869832769,-460.0,0.00020252,2]
[378450531,1754869832778,-460.0,0.00020252,2]
[378450532,1754869832788,-460.0,0.00020252,2]
[378450533,1754869832800,-243.39,0.00020252,2]
[378450534,1754869832809,-460.0,0.00020252,2]
[378450535,1754869832819,-460.0,0.00020252,2]
[378450536,1754869832828,-460.0,0.00020252,2]
[378450537,1754869832838,-463.39290305,0.00020252,2]
[378450538,1754869832848,-460.0,0.00020252,2]
[378450539,1754869832858,-460.0,0.00020252,2]
[378450540,1754869832867,-460.0,0.00020252,2]
[378450541,1754869832878,-393.2687295,0.00020252,2]
[378450542,1754869832887,-460.0,0.00020252,2]
[378450543,1754869832897,-460.0,0.00020252,2]
[378450544,1754869832906,-463.17031136,0.00020252,2]
[378450545,1754869832915,-460.0,0.00020252,2]
[378450546,1754869832925,-460.0,0.00020252,2]
[378450547,1754869832934,-460.0,0.00020252,2]
[378450548,1754869832943,-460.0,0.00020252,2]
[378450549,1754869832953,-460.0,0.00020252,2]
[378450550,1754869832962,-460.0,0.00020252,2]
[378450551,1754869832972,-460.0,0.00020252,2]
[378450552,1754869832982,-460.0,0.00020252,2]
[378450553,1754869832991,-460.0,0.00020252,2]
[378450554,1754869833000,-460.0,0.00020252,2]
[378450555,1754869833009,-460.0,0.00020252,2]
[378450556,1754869833019,-460.0,0.00020252,2]
[378450557,1754869833028,-460.0,0.00020252,2]
[378450558,1754869833037,-460.0,0.00020252,2]
[378450559,1754869833047,-595.17,0.00020252,2]
[378450560,1754869833056,-169.7,0.00020252,2]
[378450561,1754869833066,-460.0,0.00020252,2]
[378450562,1754869833075,-460.0,0.00020252,2]
[378450563,1754869833084,-460.0,0.00020252,2]
[378450564,1754869833093,-460.0,0.00020252,2]
[378450565,1754869833103,-460.0,0.00020252,2]
[378450566,1754869833112,-202.0654952,0.00020252,2]
[378450567,1754869833122,-460.0,0.00020253,2]
[378450568,1754869833131,-1473.21252104,0.00020254,2]
[378450569,1754869833141,-427.66025894,0.0002029,2]
[378450570,1754869833150,-1473.21252103,0.00020325,2]
[378450571,1754869833160,-559.50289241,0.0002034,2]
[378450572,1754869833169,-559.50289241,0.0002034,2]
[378450573,1754869833178,-367.83304494,0.0002034,2]
[378450574,1754869833187,-559.50289241,0.0002034,2]
[378450575,1754869833197,-559.50289241,0.0002034,2]
[378450576,1754869833207,-559.50289241,0.0002034,2]
[378450577,1754869833216,-559.50289241,0.0002034,2]
[378450578,1754869833226,-559.50289241,0.0002034,2]
[378450579,1754869833236,-559.50289241,0.0002034,2]
[378450580,1754869833245,-559.50289241,0.0002034,2]
[378450581,1754869833255,-559.50289241,0.0002034,2]
[378450582,1754869833264,-460.0,0.0002034,2]
[378450583,1754869833273,-460.0,0.0002034,2]
[378450584,1754869833283,-151.0,0.00020341,2]
[378450585,1754869833292,-500.0,0.00020341,2]
[378450586,1754869833301,-151.0,0.00020341,2]
[378450587,1754869833310,-500.0,0.00020341,2]
[378450588,1754869833320,-151.0,0.00020341,2]
[378450589,1754869833329,-500.0,0.00020341,2]
[378450590,1754869833338,-151.0,0.00020341,2]
[378450591,1754869833347,-500.0,0.00020341,2]
[378450592,1754869833357,-151.0,0.00020341,2]
[378450593,1754869833366,-151.0,0.00020341,2]
[378450594,1754869833375,-500.0,0.00020341,2]
[378450595,1754869833384,-151.0,0.00020341,2]
[378450596,1754869833393,-151.0,0.00020341,2]
[378450597,1754869833403,-151.0,0.00020341,2]
[378450598,1754869833412,-500.0,0.00020341,2]
[378450599,1754869833550,-151.0,0.00020341,2]
[378450600,1754869833561,-233.80049677,0.00020341,2]
[378450601,1754869833571,-151.0,0.00020341,2]
[378450602,1754869833580,-500.0,0.00020341,2]
[378450603,1754869833589,-151.0,0.00020341,2]
[378450604,1754869833599,-151.0,0.00020341,2]
[378450605,1754869833609,-500.0,0.00020341,2]
[378450606,1754869833618,-3004.71971248,0.00020341,2]
[378450607,1754869833631,-664.2545673,0.00020341,2]
[378450608,1754869838350,-460.0,0.00020252,2]
[378450609,1754869838360,-460.0,0.00020252,2]
[378450610,1754869838370,-559.50289241,0.0002034,2]
[378450611,1754869838380,-559.50289241,0.0002034,2]
[378450612,1754869838389,-183.84421518,0.0002034,2]
[378450613,1754869838512,-375.65867723,0.0002034,2]
[378450614,1754869838522,-559.50289241,0.0002034,2]
[378450615,1754869838531,-559.50289241,0.0002034,2]
[378450616,1754869838541,-14833.7214988,0.00020341,2]
[378450617,1754869838550,-151.0,0.00020341,2]
[378450618,1754869838560,-151.0,0.00020341,2]
[378450619,1754869838569,-151.0,0.00020341,2]
[378450620,1754869838579,-500.0,0.00020341,2]
[378450621,1754869838588,-256.01205118,0.00020341,2]
[378450622,1754869838597,-151.0,0.00020341,2]
[378450623,1754869838607,-151.0,0.00020341,2]
[378450624,1754869838616,-500.0,0.00020341,2]
[378450625,1754869838626,-151.0,0.00020341,2]
[378450626,1754869838635,-151.0,0.00020341,2]
[378450627,1754869838643,-151.0,0.00020341,2]
[378450628,1754869838653,-500.0,0.00020341,2]
[378450629,1754869838663,-151.0,0.00020341,2]
[378450630,1754869838672,-151.0,0.00020341,2]
[378450632,1754869838681,-151.0,0.00020341,2]
[378450633,1754869838691,-500.0,0.00020341,2]
[378450634,1754869838700,-151.0,0.00020341,2]
[378450635,1754869838710,-151.0,0.00020341,2]
[378450636,1754869838719,-151.0,0.00020341,2]
[378450637,1754869838728,-500.0,0.00020341,2]
[378450638,1754869838737,-151.0,0.00020341,2]
[378450639,1754869838746,-151.0,0.00020341,2]
[378450640,1754869838756,-500.0,0.00020341,2]
[378450641,1754869838766,-151.0,0.00020341,2]
[378450642,1754869838775,-151.0,0.00020341,2]
[378450643,1754869838785,-151.0,0.00020341,2]
[378450644,1754869838795,-500.0,0.00020341,2]
[378450645,1754869838806,-500.0,0.00020341,2]
[378450646,1754869838815,-151.0,0.00020341,2]
[378450647,1754869838825,-151.0,0.00020341,2]
[378450648,1754869838834,-151.0,0.00020341,2]
[378450649,1754869838843,-151.0,0.00020341,2]
[378450650,1754869838854,-151.0,0.00020341,2]
[378450651,1754869838867,-151.0,0.00020341,2]
[378450652,1754869838878,-151.0,0.00020341,2]
[378450653,1754869838887,-151.0,0.00020341,2]
[378450654,1754869838896,-151.0,0.00020341,2]
[378450655,1754869838906,-151.0,0.00020341,2]
[378450656,1754869838916,-151.0,0.00020341,2]
[378450657,1754869838926,-263.85481817,0.00020341,2]
[378450658,1754869838936,-151.0,0.00020341,2]
[378450659,1754869838945,-151.0,0.00020341,2]
[378450660,1754869838955,-151.0,0.00020341,2]
[378450661,1754869838964,-151.0,0.00020341,2]
[378450662,1754869838973,-151.0,0.00020341,2]
[378450663,1754869838982,-250.0,0.00020341,2]
[378450664,1754869838993,-151.0,0.00020341,2]
[378450665,1754869839002,-250.0,0.00020341,2]
[378450666,1754869839011,-151.0,0.00020341,2]
[378450667,1754869839021,-250.0,0.00020341,2]
[378450668,1754869839030,-151.0,0.00020341,2]
[378450669,1754869839040,-250.0,0.00020341,2]
[378450670,1754869839050,-196.83053362,0.00020341,2]
[378450671,1754869839059,-250.0,0.00020341,2]
[378450672,1754869839069,-151.0,0.00020341,2]
[378450673,1754869839078,-151.0,0.00020341,2]
[378450674,1754869839088,-151.0,0.00020341,2]
[378450675,1754869839097,-151.0,0.00020341,2]
[378450676,1754869839106,-151.0,0.00020341,2]
[378450677,1754869839116,-151.0,0.00020341,2]
[378450678,1754869839125,-151.0,0.00020341,2]
[378450679,1754869839134,-151.0,0.00020341,2]
[378450680,1754869839143,-151.0,0.00020341,2]
[378450681,1754869839152,-151.0,0.00020341,2]
[378450682,1754869839161,-151.0,0.00020341,2]
[378450683,1754869839171,-151.0,0.00020341,2]
[378450684,1754869839180,-280.54880324,0.00020351,2]
[378450685,1754869839190,-460.0,0.00020351,2]
[378450686,1754869839199,-460.0,0.00020351,2]
[378450687,1754869839209,-511.08272571,0.00020351,2]
[378450688,1754869839219,-460.0,0.00020351,2]
[378450689,1754869839228,-460.0,0.00020351,2]
[378450690,1754869839238,-460.0,0.00020351,2]
[378450691,1754869839248,-546.1786206,0.00020351,2]
[378450692,1754869839257,-460.0,0.00020351,2]
[378450693,1754869839267,-471.3148855,0.00020351,2]
[378450694,1754869839276,-460.0,0.00020351,2]
[378450695,1754869839285,-460.0,0.00020351,2]
[378450696,1754869839294,-460.0,0.00020351,2]
[378450697,1754869839303,-679.04,0.00020351,2]
[378450698,1754869839312,-460.0,0.00020351,2]
[378450699,1754869839321,-405.17769761,0.00020351,2]
[378450700,1754869839330,-460.0,0.00020351,2]
[378450701,1754869839339,-460.0,0.00020351,2]
[378450702,1754869839349,-463.21938518,0.00020351,2]
[378450703,1754869839358,-460.89020089,0.00020351,2]
[378450704,1754869839367,-460.0,0.00020351,2]
[378450705,1754869839376,-460.0,0.00020351,2]
[378450706,1754869839386,-460.0,0.00020351,2]
[378450707,1754869839395,-460.61666411,0.00020351,2]
[378450708,1754869839404,-460.0,0.00020351,2]
[378450709,1754869839413,-460.0,0.00020351,2]
[378450710,1754869839422,-460.0,0.00020351,2]
[378450711,1754869839431,-460.0,0.00020351,2]
[378450712,1754869839440,-460.0,0.00020351,2]
[378450713,1754869839449,-460.0,0.00020351,2]
[378450714,1754869839458,-460.0,0.00020351,2]
[378450715,1754869839467,-460.0,0.00020351,2]
[378450716,1754869839477,-1052.11,0.00020351,2]
[378450717,1754869839486,-460.0,0.00020351,2]
[378450718,1754869839497,-460.0,0.00020351,2]
[378450719,1754869839506,-460.0,0.00020351,2]
[378450720,1754869839516,-512.79300748,0.00020351,2]
[378450721,1754869839525,-460.0,0.00020351,2]
[378450722,1754869839534,-460.0,0.00020351,2]
[378450723,1754869839543,-460.0,0.00020351,2]
[378450724,1754869839552,-460.0,0.00020351,2]
[378450725,1754869839561,-460.0,0.00020351,2]
[378450726,1754869839571,-460.0,0.00020351,2]
[378450727,1754869839580,-151.0,0.00020351,2]
[378450728,1754869839589,-151.0,0.00020351,2]
[378450729,1754869839599,-151.0,0.00020351,2]
[378450730,1754869839607,-460.0,0.00020351,2]
[378450731,1754869839616,-460.0,0.00020351,2]
[378450732,1754869839626,-461.19518671,0.00020351,2]
[378450733,1754869839636,-460.0,0.00020351,2]
[378450734,1754869839645,-460.0,0.00020351,2]
[378450735,1754869839654,-500.0,0.00020352,2]
[378450736,1754869839663,-460.0,0.00020352,2]
[378450737,1754869839672,-460.0,0.00020352,2]
[378450738,1754869839682,-151.0,0.00020352,2]
[378450739,1754869839690,-460.0,0.00020352,2]
[378450740,1754869839699,-460.0,0.00020352,2]
[378450741,1754869839708,-500.0,0.00020352,2]
[378450742,1754869839718,-460.0,0.00020352,2]
[378450743,1754869839727,-460.0,0.00020352,2]
[378450744,1754869839737,-151.0,0.00020352,2]
[378450745,1754869839748,-151.0,0.00020352,2]
[378450746,1754869839757,-151.0,0.00020352,2]
[378450747,1754869839766,-151.0,0.00020352,2]
[378450748,1754869839775,-460.0,0.00020353,2]
[378450749,1754869839784,-460.0,0.00020353,2]
[378450750,1754869839795,-460.0,0.00020353,2]
[378450751,1754869839807,-460.0,0.00020353,2]
[378450752,1754869839816,-460.0,0.00020353,2]
[378450753,1754869839825,-460.0,0.00020353,2]
[378450754,1754869839834,-522.50518272,0.00020353,2]
[378450755,1754869839844,-460.0,0.00020353,2]
[378450756,1754869839854,-460.0,0.00020353,2]
[378450757,1754869839863,-327.77762921,0.00020353,2]
[378450758,1754869839874,-460.0,0.00020353,2]
[378450759,1754869839883,-460.0,0.00020353,2]
[378450760,1754869839892,-460.0,0.00020353,2]
[378450761,1754869839901,-460.0,0.00020353,2]
[378450762,1754869839911,-460.0,0.00020353,2]
[378450764,1754869839921,-460.0,0.00020353,2]
[378450765,1754869839931,-460.0,0.00020353,2]
[378450766,1754869839941,-460.0,0.00020353,2]
[378450767,1754869839951,-460.74518893,0.00020353,2]
[378450768,1754869839961,-606.33676775,0.00020353,2]
[378450769,1754869839970,-460.0,0.00020353,2]
[378450770,1754869839980,-254.78031582,0.00020353,2]
[378450771,1754869839991,-460.0,0.00020353,2]
[378450772,1754869840001,-460.0,0.00020353,2]
[378450773,1754869840010,-460.0,0.00020353,2]
[378450774,1754869840019,-460.0,0.00020353,2]
[378450776,1754869840029,-460.0,0.00020353,2]
[378450778,1754869840038,-460.0,0.00020353,2]
[378450780,1754869840048,-460.0,0.00020353,2]
[378450782,1754869840057,-460.0,0.00020353,2]
[378450784,1754869840066,-295.47814268,0.00020353,2]
[378450786,1754869840076,-460.0,0.00020353,2]
[378450788,1754869840085,-460.0,0.00020353,2]
[378450790,1754869840095,-460.0,0.00020353,2]
[378450792,1754869840105,-460.0,0.00020353,2]
[378450794,1754869840114,-460.0,0.00020353,2]
[378450796,1754869840123,-245.62795233,0.00020353,2]
[378450798,1754869840132,-460.0,0.00020353,2]
[378450800,1754869840141,-612.16,0.00020353,2]
[378450802,1754869840151,-460.0,0.00020353,2]
[378450804,1754869840160,-460.0,0.00020353,2]
[378450806,1754869840169,-460.0,0.00020353,2]
[378450808,1754869840178,-460.0,0.00020353,2]
[378450810,1754869840188,-557.62,0.00020353,2]
[378450812,1754869840197,-151.0,0.00020353,2]
[378450814,1754869840207,-151.0,0.00020353,2]
[378450816,1754869840217,-151.0,0.00020353,2]
[378450818,1754869840227,-460.0,0.00020353,2]
[378450820,1754869840236,-460.0,0.00020353,2]
[378450822,1754869840246,-460.0,0.00020353,2]